bitfinex/quotes_BTCUSD_20260215
["timestamp","ask_amount","ask_price","bid_price","bid_amount"]
[1771160291576,0.36282979,69529.0,69500.0,4e-05]
[1771160291807,0.0001297,69519.0,69512.0,0.07192974]
[1771160292036,0.07192469,69518.0,69509.0,0.07193214]
[1771160292270,0.07192473,69518.0,69509.0,0.07193312]
[1771160292493,0.07205254,69519.0,69509.0,0.07193312]
[1771160292730,0.07192381,69518.0,69509.0,0.07193312]
[1771160293160,0.0001297,69519.0,69504.0,0.0719383]
[1771160293371,0.0001297,69519.0,69500.0,4e-05]
[1771160293576,0.07192859,69514.0,69505.0,0.07193704]
[1771160293787,0.35887833,69519.0,69500.0,4e-05]
[1771160293972,0.35874863,69514.0,69500.0,4e-05]
[1771160294260,0.02431383,69519.0,69500.0,4e-05]
[1771160294261,0.35874863,69518.0,69500.0,4e-05]
[1771160294455,0.35874863,69514.0,69500.0,4e-05]
[1771160294660,0.07193529,69507.0,69500.0,4e-05]
[1771160294869,0.35874863,69514.0,69500.0,0.07198208]
[1771160295099,0.02431383,69519.0,69501.0,0.07194141]
[1771160295100,0.07193361,69509.0,69501.0,0.07194141]
[1771160295307,0.35874863,69517.0,69488.0,0.09212]
[1771160295528,0.35874863,69509.0,69488.0,0.09212]
[1771160295746,0.35874863,69509.0,69489.0,0.07195288]
[1771160295747,0.07194474,69498.0,69489.0,0.07195288]
[1771160295958,0.07194474,69498.0,69488.0,0.16407288]
[1771160296184,0.02418413,69506.0,69488.0,0.09212]
[1771160296406,0.35874863,69505.0,69489.0,0.07195367]
[1771160296630,0.07194231,69501.0,69492.0,0.07195037]
[1771160296861,0.28775552,69504.0,69492.0,0.07195054]
[1771160297074,0.28774297,69507.0,69493.0,0.07194888]
[1771160297274,0.07194033,69503.0,69493.0,0.35392184]
[1771160297488,0.07194088,69502.0,69493.0,0.0719489]
[1771160297713,0.07193966,69503.0,69494.0,0.07194768]
[1771160297922,4e-05,69510.0,69493.0,0.07194969]
[1771160297923,0.07194115,69502.0,69500.0,0.2675]
[1771160298162,0.0384,69555.0,69500.0,0.2675]
[1771160298163,0.000322,69514.0,69504.0,0.28774936]
[1771160298373,0.02422413,69530.0,69500.0,0.26754]
[1771160298374,0.35874863,69521.0,69500.0,0.26754]
[1771160298581,0.02422413,69530.0,69500.0,0.26754]
[1771160298582,0.07193943,69503.0,69500.0,0.26754]
[1771160298794,4e-05,69510.0,69492.0,0.35405149]
[1771160299027,0.07193559,69507.0,69498.0,0.07194444]
[1771160299229,0.07193559,69507.0,69492.0,0.35405149]
[1771160299230,0.07193614,69507.0,69500.0,0.001]
[1771160299641,0.07193672,69506.0,69500.0,0.001]
[1771160299846,0.0719346,69508.0,69500.0,0.001]
[1771160300484,0.07197228,69510.0,69500.0,0.001]
[1771160300676,0.07197253,69510.0,69500.0,0.001]
[1771160300874,0.07193329,69509.0,69500.0,0.07194244]
[1771160301082,4e-05,69510.0,69492.0,0.00012965]
[1771160301314,0.07193806,69505.0,69494.0,0.07194858]
[1771160301532,0.07193547,69507.0,69498.0,0.07194444]
[1771160302272,4e-05,69510.0,69492.0,0.00012965]
[1771160302473,0.35874863,69509.0,69493.0,0.07194969]
[1771160302672,0.0719416,69501.0,69493.0,0.07194969]
[1771160302875,0.0719416,69501.0,69492.0,0.07208015]
[1771160303248,0.07194273,69500.0,69492.0,0.00012965]
[1771160303667,4e-05,69502.0,69492.0,0.00012965]
[1771160303874,4e-05,69502.0,69459.0,0.57587158]
[1771160303875,0.07195406,69489.0,69480.0,0.07200238]
[1771160304090,0.07195307,69490.0,69482.0,0.07196106]
[1771160304295,0.07195475,69489.0,69481.0,0.07196167]
[1771160304505,0.07208287,69490.0,69481.0,0.07196167]
[1771160304709,0.07194748,69496.0,69480.0,4e-05]
[1771160304912,4e-05,69500.0,69481.0,0.35392184]
[1771160305119,0.28779421,69504.0,69493.0,0.0002]
[1771160305120,4e-05,69504.0,69493.0,0.0002]
[1771160305329,4e-05,69506.0,69505.0,0.07193727]
[1771160305560,4e-05,69506.0,69494.0,0.35396184]
[1771160305561,4e-05,69514.0,69509.0,0.07193313]
[1771160305979,4e-05,69514.0,69507.0,0.0719351]
[1771160306183,4e-05,69514.0,69508.0,0.07193416]
[1771160306590,0.00016984,69512.0,69508.0,0.07193416]
[1771160306993,0.28768559,69521.0,69504.0,0.28775187]
[1771160306994,0.02418413,69526.0,69509.0,0.07193313]
[1771160307630,0.02418413,69526.0,69506.0,4e-05]
[1771160307757,0.07192769,69515.0,69506.0,4e-05]
[1771160307964,0.07192769,69515.0,69507.0,0.07193487]
[1771160308166,0.00044,69518.0,69506.0,4e-05]
[1771160308378,0.00044,69518.0,69494.0,0.07198823]
[1771160308379,0.36348531,69509.0,69494.0,0.07198823]
[1771160308600,0.02417879,69510.0,69498.0,0.00016984]
[1771160308980,0.07194113,69502.0,69498.0,0.00016984]
[1771160309178,0.07194149,69501.0,69498.0,0.00016984]
[1771160309377,0.07193974,69503.0,69498.0,0.00016984]
[1771160309577,0.07194037,69504.0,69498.0,0.00016984]
[1771160309777,0.07194078,69502.0,69498.0,0.00016984]
[1771160310336,0.02417879,69510.0,69498.0,0.00016984]
[1771160310542,8e-05,69510.0,69498.0,0.07211418]
[1771160310772,0.07194213,69501.0,69498.0,0.00016984]
[1771160310974,0.36348531,69504.0,69498.0,0.00016984]
[1771160311175,0.36348531,69504.0,69492.0,0.07183302]
[1771160311354,0.07194141,69501.0,69492.0,0.07183302]
[1771160311875,0.07194368,69499.0,69490.0,0.07199243]
[1771160312196,4e-05,69502.0,69490.0,4e-05]
[1771160312197,0.0719462,69497.0,69490.0,4e-05]
[1771160312401,0.07194661,69496.0,69490.0,4e-05]
[1771160312796,0.07194661,69496.0,69478.0,0.28786043]
[1771160312797,0.07196211,69481.0,69474.0,4e-05]
[1771160313031,4e-05,69500.0,69474.0,0.0001298]
[1771160313032,4e-05,69484.0,69474.0,0.0001298]
[1771160313175,0.0599025,69483.0,69474.0,0.0001298]
[1771160313554,0.07196204,69482.0,69474.0,0.0001698]
[1771160313765,0.36348531,69489.0,69474.0,0.0001698]
[1771160313973,0.02409879,69488.0,69474.0,0.0001698]
[1771160314184,0.36348531,69487.0,69474.0,0.0001698]
[1771160314399,0.07197032,69474.0,69470.0,4e-05]
[1771160315026,4e-05,69476.0,69470.0,0.07197259]
[1771160315242,4e-05,69476.0,69470.0,0.07197299]
[1771160315897,0.07196931,69475.0,69464.0,0.0002]
[1771160316108,4e-05,69476.0,69464.0,0.00032982]
[1771160316318,0.07196833,69475.0,69464.0,0.00032982]
[1771160316545,4e-05,69476.0,69464.0,0.00032982]
[1771160317271,4e-05,69476.0,69469.0,0.07197352]
[1771160317472,4e-05,69476.0,69465.0,0.35631871]
[1771160317646,4e-05,69482.0,69475.0,0.07196833]
[1771160317847,0.07195469,69489.0,69475.0,0.35631871]
[1771160318067,0.07194687,69496.0,69487.0,0.071955]
[1771160318384,4e-05,69502.0,69481.0,0.35631871]
[1771160318586,4e-05,69502.0,69497.0,0.07194473]
[1771160318787,4e-05,69502.0,69472.0,4e-05]
[1771160318788,0.07196621,69478.0,69472.0,4e-05]
[1771160318989,0.07196621,69478.0,69429.0,0.44030909]
[1771160318990,0.07197656,69469.0,69438.0,0.43257304]
[1771160319162,0.02409879,69478.0,69462.0,0.07211085]
[1771160319163,0.07196729,69476.0,69462.0,0.07211085]
[1771160319366,0.07197226,69472.0,69463.0,0.07198053]
[1771160319544,0.07196847,69475.0,69463.0,0.07198076]
[1771160319757,0.07196687,69477.0,69467.0,0.07197612]
[1771160319955,0.0719674,69476.0,69467.0,0.07197612]
[1771160320142,0.07196658,69477.0,69468.0,0.07197523]
[1771160320367,0.07196468,69479.0,69469.0,0.0719745]
[1771160320571,4e-05,69482.0,69469.0,0.00012982]
[1771160321001,0.07200108,69482.0,69473.0,0.07197034]
[1771160321220,4e-05,69482.0,69470.0,0.07197347]
[1771160321452,4e-05,69482.0,69469.0,0.07210414]
[1771160321453,0.07200148,69482.0,69469.0,0.00012982]
[1771160322182,0.07200148,69482.0,69470.0,0.07197351]
[1771160322382,0.07200148,69482.0,69469.0,0.00012982]
[1771160322383,0.07196517,69479.0,69469.0,0.00012982]
[1771160322588,0.07196726,69477.0,69469.0,0.00012982]
[1771160322810,0.36352531,69480.0,69469.0,0.00012982]
[1771160323020,0.07196721,69477.0,69469.0,0.00012982]
[1771160323235,0.32541555,69479.0,69469.0,0.00012982]
[1771160323435,0.07196882,69475.0,69469.0,0.00012982]
[1771160323615,0.0719704,69474.0,69469.0,0.00012982]
[1771160323860,0.07197031,69474.0,69464.0,0.07197968]
[1771160324066,0.07197031,69474.0,69465.0,0.07197849]
[1771160324067,0.07210001,69474.0,69465.0,0.07197849]
[1771160324268,0.0001297,69474.0,69466.0,0.07197759]
[1771160324650,0.0001297,69474.0,69469.0,0.07197419]
[1771160324805,0.0001297,69474.0,69466.0,0.07197695]
[1771160325010,0.0719704,69473.0,69464.0,0.07197973]
[1771160325208,0.0001297,69474.0,69460.0,0.00013]
[1771160325413,0.07197137,69473.0,69460.0,0.00013]
[1771160325611,0.07197137,69473.0,69463.0,0.07197973]
[1771160325817,0.0001297,69474.0,69460.0,0.00013]
[1771160326387,0.0001297,69474.0,69460.0,0.28806135]
[1771160326900,0.07209909,69474.0,69466.0,0.07197764]
[1771160327141,0.0001297,69474.0,69461.0,0.07198283]
[1771160327461,0.0001297,69474.0,69469.0,0.07197355]
[1771160327677,0.0001297,69474.0,69460.0,0.00113]
[1771160327887,0.0001297,69474.0,69466.0,0.07197747]
[1771160328319,0.0001297,69474.0,69464.0,0.07197963]
[1771160328518,0.0001297,69474.0,69460.0,0.00013]
[1771160328808,0.07197154,69472.0,69464.0,0.07197932]
[1771160329388,0.07197119,69473.0,69463.0,0.07197985]
[1771160329592,0.0001297,69474.0,69453.0,0.2879639]
[1771160329709,0.07197585,69468.0,69454.0,0.07211131]
[1771160329918,0.35734254,69474.0,69455.0,0.00144356]
[1771160330132,0.07197378,69470.0,69453.0,0.28795208]
[1771160330335,0.07197378,69470.0,69460.0,0.07198357]
[1771160330760,0.07197564,69468.0,69460.0,0.07198357]
[1771160330975,0.07197564,69468.0,69453.0,0.28795208]
[1771160330976,0.35721284,69469.0,69456.0,0.00144346]
[1771160331380,0.07198387,69460.0,69456.0,0.00144346]
[1771160331587,0.07198258,69462.0,69457.0,0.07211131]
[1771160331793,0.07198258,69462.0,69455.0,0.07198905]
[1771160332002,0.0719816,69463.0,69454.0,0.07198991]
[1771160332207,0.0719816,69463.0,69312.0,0.00013854]
[1771160332208,0.07197685,69467.0,69455.0,0.07355461]
[1771160332416,0.02261543,69472.0,69455.0,0.07355461]
[1771160332417,0.07198367,69461.0,69456.0,0.07211131]
[1771160332619,0.35721284,69468.0,69457.0,0.00144325]
[1771160333032,0.28791342,69466.0,69456.0,0.07211131]
[1771160333244,0.07182163,69459.0,69451.0,0.0719931]
[1771160333631,0.07182163,69459.0,69450.0,0.07199366]
[1771160333632,0.42919982,69457.0,69439.0,0.07200464]
[1771160333838,0.42919982,69457.0,69446.0,0.07199792]
[1771160333839,0.07199108,69454.0,69446.0,0.07199792]
[1771160334048,0.07199108,69454.0,69447.0,0.07211131]
[1771160334257,0.07199264,69452.0,69447.0,0.07211131]
[1771160334477,0.07199391,69451.0,69447.0,0.07211131]
[1771160334889,0.07199264,69452.0,69444.0,0.07200038]
[1771160335096,0.07199264,69452.0,69444.0,0.14411169]
[1771160335304,0.07199123,69453.0,69445.0,0.07199856]
[1771160335510,4e-05,69462.0,69447.0,0.32975884]
[1771160335718,4e-05,69462.0,69447.0,0.0002]
[1771160335924,0.35721284,69461.0,69447.0,0.0002]
[1771160336377,4e-05,69462.0,69447.0,0.0002]
[1771160336378,0.35721284,69458.0,69447.0,0.0002]
[1771160336590,4e-05,69462.0,69433.0,0.07201165]
[1771160336591,0.00101947,69440.0,69433.0,0.07201165]
[1771160336809,0.00101947,69440.0,69429.0,0.34364]
[1771160336810,0.00133262,69440.0,69429.0,0.34364]
[1771160337028,0.00133262,69440.0,69423.0,0.32987884]
[1771160337236,0.07201259,69433.0,69423.0,0.00012]
[1771160337449,0.35721284,69439.0,69423.0,0.00012]
[1771160337450,0.07201285,69434.0,69423.0,0.00012]
[1771160337665,0.07201994,69426.0,69423.0,0.00012]
[1771160337876,0.35721284,69437.0,69423.0,0.00012]
[1771160337877,0.07201731,69428.0,69423.0,0.00012]
[1771160338093,0.28803502,69439.0,69414.0,0.34364]
[1771160338304,0.00133262,69440.0,69414.0,0.34364]
[1771160338305,0.07202406,69422.0,69414.0,0.34364]
[1771160338514,0.35721284,69433.0,69414.0,0.34364]
[1771160338736,0.07203046,69416.0,69414.0,0.34364]
[1771160338959,1.43973087,69458.0,69408.0,0.07256909]
[1771160338960,0.35721284,69461.0,69417.0,0.43216667]
[1771160339169,0.35721284,69461.0,69408.0,0.0005333]
[1771160339170,0.07200027,69445.0,69434.0,0.07201049]
[1771160339413,0.00089947,69444.0,69434.0,0.32975884]
[1771160339621,0.00089947,69444.0,69435.0,0.07200906]
[1771160339833,0.00089947,69444.0,69405.0,1.44073535]
[1771160339834,0.00089947,69444.0,69392.0,0.03648836]
[1771160340053,0.00133235,69444.0,69439.0,0.07200557]
[1771160340472,0.00133235,69444.0,69436.0,0.07200802]
[1771160340684,0.00133235,69444.0,69439.0,0.07200463]
[1771160340896,0.00133235,69444.0,69439.0,0.0720049]
[1771160341524,0.37986827,69462.0,69422.0,0.32975884]
[1771160341730,0.28793135,69461.0,69443.0,0.07200049]
[1771160341948,0.07199318,69452.0,69443.0,0.07200049]
[1771160342160,0.07199318,69452.0,69444.0,0.07200039]
[1771160342360,0.07199248,69452.0,69443.0,0.07213084]
[1771160342581,0.07199248,69452.0,69444.0,0.07200017]
[1771160343034,0.07199307,69453.0,69443.0,0.07213029]
[1771160343270,0.07199307,69453.0,69444.0,0.07200046]
[1771160343678,0.07199119,69453.0,69444.0,0.07199976]
[1771160343888,0.0719925,69452.0,69444.0,0.07200046]
[1771160344349,0.35721284,69460.0,69444.0,0.28800184]
[1771160344545,0.35721284,69456.0,69448.0,0.07199542]
[1771160344766,0.35721284,69456.0,69443.0,0.00032965]
[1771160345012,0.02265543,69462.0,69443.0,0.00032965]
[1771160345013,0.07198526,69459.0,69451.0,0.07199248]
[1771160345217,0.0005,69452.0,69450.0,0.0719939]
[1771160345632,0.07198683,69458.0,69451.0,0.07199319]
[1771160345846,0.07198683,69458.0,69450.0,0.0719939]
[1771160346257,0.07198892,69456.0,69447.0,0.07199651]
[1771160346470,0.35725284,69462.0,69443.0,0.00032965]
[1771160346471,0.07199691,69448.0,69443.0,0.00032965]
[1771160346725,4e-05,69462.0,69443.0,0.00032965]
[1771160346726,0.35721284,69461.0,69443.0,0.00032965]
[1771160346939,0.07199129,69453.0,69445.0,0.07199858]
[1771160348256,4e-05,69452.0,69445.0,0.001]
[1771160348398,4e-05,69452.0,69446.0,0.07343824]
[1771160348618,0.07202172,69464.0,69456.0,0.07198709]
[1771160348839,4e-05,69464.0,69454.0,0.07198909]
[1771160349406,4e-05,69464.0,69451.0,0.07199234]
[1771160349407,0.07198492,69459.0,69451.0,0.07199234]
[1771160349607,0.07202353,69461.0,69450.0,8e-05]
[1771160349776,4e-05,69461.0,69450.0,0.28805471]
[1771160349982,4e-05,69462.0,69458.0,0.07198568]
[1771160350160,4e-05,69462.0,69460.0,0.07198387]
[1771160350361,0.07201579,69468.0,69460.0,0.07198387]
[1771160350362,4e-05,69468.0,69460.0,0.07198387]
[1771160350524,8e-05,69468.0,69461.0,0.07198192]
[1771160350727,4e-05,69472.0,69457.0,0.32975884]
[1771160350929,8e-05,69472.0,69469.0,0.07197384]
[1771160351133,0.07195763,69486.0,69475.0,0.07196833]
[1771160351332,0.02261543,69497.0,69462.0,4e-05]
[1771160351333,0.07195001,69493.0,69485.0,0.07195782]
[1771160351638,0.07195001,69493.0,69477.0,0.32975884]
[1771160351639,0.07195111,69492.0,69484.0,0.07195872]
[1771160351840,0.07195111,69492.0,69483.0,0.07195978]
[1771160351841,0.07194711,69496.0,69487.0,0.0719555]
[1771160352035,0.00012994,69496.0,69480.0,4e-05]
[1771160352250,0.07196107,69483.0,69480.0,4e-05]
[1771160352453,0.07195472,69489.0,69469.0,0.28789405]
[1771160352702,0.07195565,69488.0,69480.0,0.07196283]
[1771160352867,0.35725284,69490.0,69469.0,0.28789405]
[1771160353077,0.35725284,69490.0,69474.0,0.07196921]
[1771160353078,0.07196104,69483.0,69474.0,0.07196921]
[1771160353273,0.07196016,69483.0,69474.0,0.07196921]
[1771160353498,0.07196016,69483.0,69475.0,0.07196826]
[1771160354131,0.07196016,69483.0,69464.0,0.31254164]
[1771160354132,4e-05,69490.0,69405.0,0.0227709]
[1771160354133,0.32688716,69444.0,69405.0,0.0227709]
[1771160354342,0.42003489,69445.0,69405.0,0.0227709]
[1771160354343,0.02350002,69443.0,69416.0,0.07202869]
[1771160354670,0.42003489,69445.0,69405.0,0.0227709]
[1771160354671,0.07201601,69429.0,69405.0,0.0227709]
[1771160354869,0.07201649,69429.0,69416.0,0.0004345]
[1771160355003,0.07201831,69427.0,69416.0,0.0004345]
[1771160355406,0.07201699,69429.0,69419.0,0.0720263]
[1771160355610,0.39890294,69430.0,69419.0,0.0720263]
[1771160355611,0.07201706,69428.0,69419.0,0.0720263]
[1771160356029,0.32688716,69430.0,69420.0,0.07202532]
[1771160356228,0.07201661,69429.0,69418.0,0.07202736]
[1771160356970,0.07201601,69431.0,69418.0,0.07202736]
[1771160356971,0.07201739,69428.0,69418.0,0.07202736]
[1771160357398,0.32688716,69435.0,69417.0,0.0004345]
[1771160357399,0.07202082,69425.0,69417.0,0.0004345]
[1771160357560,0.32688716,69442.0,69417.0,0.0004345]
[1771160357763,0.32688716,69429.0,69417.0,0.0004345]
[1771160357948,0.07202403,69422.0,69416.0,0.00043288]
[1771160358351,0.07201934,69426.0,69416.0,0.00043288]
[1771160358544,0.07202512,69421.0,69416.0,0.00043288]
[1771160358771,0.28805568,69432.0,69416.0,0.00043288]
[1771160358945,0.32688716,69436.0,69418.0,0.07202742]
[1771160359146,0.07201496,69431.0,69419.0,0.00367152]
[1771160359468,0.07201613,69429.0,69419.0,0.07569775]
[1771160359683,0.07201152,69434.0,69419.0,0.00367152]
[1771160360023,0.0720155,69430.0,69419.0,0.0720254]
[1771160360212,0.05701604,69429.0,69420.0,0.07569644]
[1771160360578,0.05701604,69429.0,69423.0,0.000135]
[1771160360952,0.07201061,69435.0,69423.0,0.000135]
[1771160361149,0.07201354,69432.0,69423.0,0.000135]
[1771160361380,0.07201354,69432.0,69423.0,0.00380624]
[1771160361593,0.07201083,69434.0,69423.0,0.07582844]
[1771160361789,0.32688716,69443.0,69423.0,0.00380624]
[1771160361998,0.76280716,69457.0,69423.0,0.00400624]
[1771160362204,0.07200371,69441.0,69432.0,0.07201245]
[1771160362447,0.07200134,69444.0,69433.0,0.07568229]
[1771160362858,0.07199565,69449.0,69440.0,0.07200432]
[1771160363021,4e-05,69452.0,69433.0,0.00367071]
[1771160363022,0.07203259,69452.0,69441.0,0.07567381]
[1771160363230,4e-05,69452.0,69444.0,0.07199942]
[1771160363586,4e-05,69452.0,69445.0,0.0719991]
[1771160363930,4e-05,69456.0,69445.0,0.00012965]
[1771160364360,4e-05,69456.0,69449.0,0.07199442]
[1771160364561,4e-05,69456.0,69448.0,0.000135]
[1771160364562,0.07199056,69454.0,69448.0,0.000135]
[1771160364767,0.07199061,69454.0,69448.0,0.000135]
[1771160364965,0.07198916,69455.0,69448.0,0.000135]
[1771160365769,0.00044,69458.0,69448.0,0.000135]
[1771160365972,0.00044,69458.0,69451.0,0.07199225]
[1771160366233,0.00044,69458.0,69451.0,0.07153566]
[1771160366436,0.07198937,69455.0,69447.0,0.07199716]
[1771160366637,4e-05,69454.0,69443.0,0.07200149]
[1771160366786,0.00016982,69454.0,69448.0,0.07199547]
[1771160366988,0.00016982,69454.0,69447.0,0.07199641]
[1771160367156,0.00016982,69454.0,69449.0,0.07199428]
[1771160367360,0.00016982,69454.0,69448.0,0.07199612]
[1771160368852,0.07199504,69450.0,69442.0,0.07204246]
[1771160369329,0.00750328,69448.0,69442.0,0.07204246]
[1771160369538,0.00016982,69454.0,69442.0,4e-05]
[1771160369779,0.00016982,69454.0,69449.0,0.07199445]
[1771160370706,4e-05,69462.0,69459.0,0.07198491]
[1771160370913,4e-05,69462.0,69446.0,4e-05]
[1771160370914,4e-05,69462.0,69460.0,0.07198357]
[1771160371113,0.0720164,69468.0,69460.0,0.00012982]
[1771160371114,4e-05,69468.0,69460.0,0.00012982]
[1771160371456,4e-05,69476.0,69472.0,0.07197099]
[1771160371801,0.34376,69495.0,69471.0,0.32998861]
[1771160371802,0.07195383,69489.0,69471.0,0.32998861]
[1771160372012,0.34376,69495.0,69485.0,0.07195709]
[1771160372013,0.07194805,69495.0,69485.0,0.07195709]
[1771160372220,0.07194805,69495.0,69479.0,0.32998861]
[1771160372221,0.32688716,69489.0,69470.0,4e-05]
[1771160372431,0.001405,69488.0,69470.0,4e-05]
[1771160372598,0.32688716,69487.0,69470.0,4e-05]
[1771160372814,0.28778964,69496.0,69470.0,4e-05]
[1771160372815,0.07197161,69472.0,69470.0,4e-05]
[1771160372994,0.07197247,69471.0,69464.0,4e-05]
[1771160373401,0.07197262,69471.0,69464.0,4e-05]
[1771160373626,0.07197262,69471.0,69464.0,0.07201954]
[1771160373818,0.32688716,69475.0,69460.0,4e-05]
[1771160373819,0.28787747,69475.0,69460.0,4e-05]
[1771160374025,0.07198076,69463.0,69458.0,4e-05]
[1771160374229,0.32688716,69467.0,69458.0,4e-05]
[1771160374436,0.0719797,69465.0,69458.0,4e-05]
[1771160374639,0.07197783,69466.0,69458.0,0.07202587]
[1771160374981,0.07197729,69467.0,69458.0,4e-05]
[1771160374982,0.07197891,69465.0,69458.0,4e-05]
[1771160375599,4e-05,69472.0,69454.0,4e-05]
[1771160375600,0.00012987,69475.0,69466.0,0.07197683]
[1771160375738,0.07197642,69468.0,69442.0,0.28988]
[1771160375942,0.00012987,69475.0,69466.0,0.07197682]
[1771160376147,0.02362989,69475.0,69457.0,0.07198602]
[1771160376346,0.07197866,69466.0,69458.0,0.07198589]
[1771160376554,0.0719759,69468.0,69460.0,0.07198304]
[1771160376945,0.0719745,69470.0,69461.0,0.07198277]
[1771160377209,0.0719745,69470.0,69462.0,0.07198076]
[1771160377772,0.32701703,69475.0,69453.0,0.32998861]
[1771160377773,0.07197098,69473.0,69453.0,0.32998861]
[1771160377996,0.07197098,69473.0,69465.0,0.07197788]
[1771160378371,0.28783954,69484.0,69453.0,0.32998861]
[1771160378372,4e-05,69478.0,69467.0,0.32998861]
[1771160378488,4e-05,69478.0,69467.0,0.33011848]
[1771160378688,4e-05,69478.0,69471.0,0.07197243]
[1771160378898,0.2878425,69483.0,69474.0,0.07196927]
[1771160378899,0.07196176,69482.0,69474.0,0.07196927]
[1771160379093,0.28781952,69488.0,69473.0,0.07197017]
[1771160379365,0.0719639,69480.0,69470.0,0.07201275]
[1771160379577,0.0719639,69480.0,69472.0,0.07197137]
[1771160379778,0.0719639,69480.0,69456.0,0.43604]
[1771160379779,0.07203383,69412.0,69395.0,0.0720513]
[1771160379992,0.35038718,69454.0,69395.0,0.00043288]
[1771160379993,0.28816367,69406.0,69395.0,0.00043288]
[1771160380194,0.32688716,69410.0,69395.0,0.00043288]
[1771160380638,0.07204344,69403.0,69395.0,0.00043288]
[1771160380836,0.07204258,69404.0,69395.0,0.00043288]
[1771160380972,0.07204332,69403.0,69395.0,0.00043288]
[1771160381605,0.07190758,69404.0,69395.0,0.00043288]
[1771160382253,0.07204028,69406.0,69395.0,0.00043288]
[1771160382456,0.07202119,69405.0,69395.0,0.00043288]
[1771160383609,0.14406213,69405.0,69395.0,0.00043288]
[1771160383945,0.07204229,69404.0,69395.0,0.00043288]
[1771160384151,0.07204328,69403.0,69395.0,0.00043288]
[1771160384528,0.07204726,69399.0,69392.0,0.0004397]
[1771160384754,0.07247961,69399.0,69392.0,0.0004397]
[1771160384940,0.00043235,69399.0,69392.0,0.0004397]
[1771160385291,0.00043235,69399.0,69392.0,0.0002]
[1771160385499,0.00043235,69399.0,69388.0,0.07205767]
[1771160385500,0.07247979,69399.0,69388.0,0.07205767]
[1771160385701,0.07204857,69398.0,69388.0,0.07225767]
[1771160386099,0.07204857,69398.0,69389.0,0.07205745]
[1771160386316,0.07205154,69395.0,69388.0,0.0002]
[1771160386522,0.07205154,69395.0,69386.0,0.07206014]
[1771160386765,0.07205045,69396.0,69384.0,0.07206201]
[1771160387254,0.07202119,69397.0,69390.0,0.07205575]
[1771160387682,0.07202119,69397.0,69383.0,0.07206376]
[1771160387910,0.00043235,69399.0,69392.0,0.07205416]
[1771160388108,0.00043235,69399.0,69391.0,0.07205532]
[1771160388331,0.00043235,69399.0,69386.0,0.28824149]
[1771160388473,0.00043235,69399.0,69382.0,0.3438]
[1771160388689,0.07205746,69390.0,69383.0,0.09224]
[1771160388902,0.3502125,69396.0,69383.0,0.43608]
[1771160389335,0.3502125,69396.0,69369.0,0.36423131]
[1771160389336,0.0720637,69384.0,69373.0,0.07207329]
[1771160389489,0.02265941,69391.0,69374.0,0.07207226]
[1771160389696,0.00043235,69399.0,69386.0,0.07205968]
[1771160389904,0.07247968,69399.0,69386.0,0.07205968]
[1771160390218,0.07247968,69399.0,69378.0,0.34586254]
[1771160390219,0.00043235,69399.0,69378.0,0.34586254]
[1771160390421,0.00043235,69399.0,69352.0,1.44191879]
[1771160390422,0.43550205,69396.0,69316.0,0.07232787]
[1771160390631,0.43550205,69396.0,69345.0,0.17000474]
[1771160390632,0.07208055,69367.0,69345.0,0.17000474]
[1771160390847,0.3502125,69379.0,69345.0,0.17144492]
[1771160391079,0.07207978,69368.0,69345.0,0.09368018]
[1771160391304,0.02265941,69381.0,69345.0,0.09368018]
[1771160391305,0.3502125,69367.0,69345.0,0.09368018]
[1771160391531,0.35012548,69367.0,69356.0,0.07209087]
[1771160391754,0.35012548,69367.0,69345.0,0.09368018]
[1771160391755,0.35008197,69367.0,69355.0,0.07209273]
[1771160391962,0.07208365,69364.0,69356.0,0.00143995]
[1771160392176,0.07207947,69368.0,69355.0,0.07209191]
[1771160392436,0.3502125,69361.0,69355.0,0.00043181]
[1771160392868,0.42230174,69359.0,69355.0,0.00043181]
[1771160393094,0.42230174,69359.0,69346.0,0.07210211]
[1771160393095,0.02265941,69370.0,69323.0,0.28862329]
[1771160393302,4e-05,69340.0,69332.0,0.07211588]
[1771160393536,4e-05,69348.0,69330.0,4e-05]
[1771160393807,0.07210285,69346.0,69333.0,0.07211492]
[1771160394011,0.42231535,69346.0,69330.0,4e-05]
[1771160394338,0.07210285,69346.0,69333.0,0.07211519]
[1771160394555,0.00043181,69346.0,69330.0,0.07215823]
[1771160394785,4e-05,69352.0,69330.0,0.07215823]
[1771160394786,4e-05,69352.0,69339.0,0.0007334]
[1771160395002,0.3502525,69352.0,69340.0,8e-05]
[1771160395206,0.07209842,69350.0,69340.0,8e-05]
[1771160395418,0.07209842,69350.0,69335.0,0.13877813]
[1771160395419,0.07210385,69345.0,69335.0,0.0666647]
[1771160395635,0.07253566,69345.0,69335.0,0.0666647]
[1771160395859,4e-05,69352.0,69335.0,0.13877731]
[1771160396073,4e-05,69356.0,69351.0,0.07209631]
[1771160396294,8e-05,69360.0,69356.0,0.07209128]
[1771160396506,4e-05,69364.0,69359.0,0.07208848]
[1771160396710,4e-05,69364.0,69359.0,0.07193929]
[1771160396935,4e-05,69364.0,69350.0,8e-05]
[1771160397158,4e-05,69364.0,69353.0,0.07209439]
[1771160397159,8e-05,69360.0,69353.0,0.07209439]
[1771160397384,0.00075072,69359.0,69353.0,0.07209439]
[1771160397589,0.00075072,69359.0,69353.0,0.07222449]
[1771160397790,0.00075072,69359.0,69355.0,0.07209237]
[1771160397962,0.00075072,69359.0,69354.0,0.07209569]
[1771160398169,0.00075072,69359.0,69354.0,0.07209332]
[1771160398344,4e-05,69364.0,69348.0,4e-05]
[1771160398345,4e-05,69364.0,69350.0,8e-05]
[1771160398542,4e-05,69364.0,69348.0,4e-05]
[1771160398543,0.3502925,69360.0,69348.0,4e-05]
[1771160398863,0.07209148,69357.0,69348.0,4e-05]
[1771160399069,0.07209032,69358.0,69348.0,4e-05]
[1771160399402,0.42238028,69360.0,69348.0,4e-05]
[1771160399403,0.07209094,69357.0,69348.0,4e-05]
[1771160399623,0.3502125,69357.0,69348.0,4e-05]
[1771160399999,4e-05,69348.0,69329.0,0.000274]
[1771160400206,4e-05,69348.0,69333.0,0.06874576]
[1771160400605,4e-05,69352.0,69340.0,8e-05]
[1771160400817,4e-05,69356.0,69344.0,4e-05]
[1771160401026,4e-05,69356.0,69355.0,0.07209285]
[1771160401241,4e-05,69356.0,69345.0,0.06874576]
[1771160401454,8e-05,69360.0,69345.0,0.06874576]
[1771160401455,8e-05,69360.0,69347.0,0.28839221]
[1771160401689,4e-05,69364.0,69359.0,0.07208844]
[1771160401896,4e-05,69364.0,69360.0,0.07208715]
[1771160402100,0.07207537,69372.0,69360.0,0.07208715]
[1771160402101,0.09232,69408.0,69377.0,0.07206999]
[1771160402304,0.3502125,69394.0,69380.0,4e-05]
[1771160402524,0.0111234,69419.0,69400.0,0.0720458]